[Event "Slovakian-ch Youth 2022"]
[Site "Lubovna"]
[Date "2022.05.22"]
[Round "1.13"]
[White "Svorad, Tomas"]
[Black "Chlpek, Daniel"]
[Result "0-1"]
[ECO "C07"]
[WhiteElo "1405"]
[BlackElo "2030"]
[Annotator "TA"]
[PlyCount "92"]
[EventDate "2022.05.22"]
[EventCountry "SVK"]
[SourceTitle "playchess.com"]
[Source "ChessBase"]
[SourceQuality "1"]
[TimeControl "40/5400+30:1800+30"]

{[%evp 9,92,8,8,0,0,0,0,0,-3,6,17,8,41,37,36,12,6,7,0,8,13,6,10,8,32,43,39,36,42,22,48,-57,-30,-23,-22,-19,-57,-62,-42,-84,-81,-121,-112,-341,-337,-336,-333,-389,-311,-415,-376,-470,-469,-988,-986,-986,-971,-950,-859,-757,-547,-6602,-6598,-6598,-6598,-6498,-6319,-6104,-6112,-5202,-5169,-6574,-6506,-6111,-6025,-29981,-29982,-29984,-29985,-29985,-29986,-29988,-29989,-29989,-29989]} 1. e4 {[%emt 0:00:08]} c5 {[%emt 0:00:58]} 2. Nf3 {[%emt 0:00:11]} e6 {[%emt 0:00:10]} 3. d4 {[%emt 0:00:27]} cxd4 {[%emt 0:00:11]} 4. Nxd4 {[%emt 0:01:03]} Nf6 {[%emt 0:00:10]} 5. Nd2 {[%emt 0:01:50]} d5 {[%emt 0:02:32]} 6. Bb5+ {[%emt 0:05:54] C07: French Tarrasch: 3...c5, 4 Ngf3 and 4 exd5 Qxd5.} Bd7 {[%emt 0:01:01]} 7. Bxd7+ {[%emt 0:04:02]} Nbxd7 {[%emt 0:00:22]} 8. exd5 {[%emt 0:00:49] The position is equal.} Nxd5 {[%emt 0:00:41]} 9. O-O {[%emt 0:01:01]} Be7 {[%emt 0:00:58]} 10. c4 {[%emt 0:07:00]} N5b6 {[%emt 0:03:52]} 11. b3 {[%emt 0:02:13]} O-O {[%emt 0:07:51] [#]} 12. Ne4 $146 {[%emt 0:08:57]} ({Predecessor:} 12. Bb2 a6 13. Qe2 Nf6 14. Rad1 Qc7 15. Rfe1 Nbd7 16. N2f3 Rad8 17. Nxe6 fxe6 18. Qxe6+ {1-0 (30) Todorov,T (2469)-Naumkin,I (2463) Ischia 2012}) 12... Nf6 {[%emt 0:01:04]} 13. Nxf6+ {[%emt 0:05:39]} Bxf6 {[%emt 0:00:01]} 14. Be3 {[%emt 0:00:46]} Qd7 {[%emt 0:07:10]} 15. Qd2 $1 {[%emt 0:04:37]} Rfd8 {[%emt 0:00:22][%cal Rf6d4]} 16. Rad1 {[%emt 0:00:39]} Qe7 {[%emt 0:09:30]} 17. Qc2 {[%emt 0:04:43]} Nd7 {[%emt 0:02:12]} 18. Nb5 {[%emt 0:05:03]} b6 {[%emt 0:09:19]} 19. Rd2 {[%emt 0:07:04]} a6 {[%emt 0:01:47]} 20. Nc7 {[%emt 0:11:04]} ({Better is} 20. Nd6 $14) 20... Ra7 {[%emt 0:04:13]} (20... Rac8 $5 {[%cal Rc8c7]} 21. Bf4 (21. Nxa6 $2 Qa3 $19) 21... Nc5 22. Rxd8+ Rxd8 $15) 21. Rfd1 $1 {[%emt 0:00:10]} Rxc7 {[%emt 0:00:51]} 22. Bxb6 $1 {[%emt 0:00:15]} Rdc8 {[%emt 0:01:04]} 23. Bxc7 {[%emt 0:01:02]} Rxc7 {[%emt 0:00:05]} 24. Qe4 {[%emt 0:04:05]} Qe8 {[%emt 0:06:15] Against Qa8} 25. Qd3 {[%emt 0:08:06]} Nc5 $36 {[%emt 0:02:33][%mdl 2048] Black has strong initiative.} 26. Qd8 {[%emt 0:01:28] Loses the game.} Bxd8 $19 {[%emt 0:00:09]} (26... Qxd8 $2 {is a self mate.} 27. Rxd8+ Bxd8 28. Rxd8#) 27. Rxd8 {[%emt 0:01:19][%cal Rd8e8] [#]} Kf8 {[%emt 0:00:05][%cal Oa6a5]} 28. Rxe8+ {[%emt 0:00:39]} Kxe8 {[%emt 0:00:06][%mdl 4096] Endgame KRN-KR} 29. b4 {[%emt 0:00:56]} Ne4 {[%emt 0:01:39]} 30. c5 {[%emt 0:00:12]} Nc3 {[%emt 0:00:25]} 31. Rd2 {[%emt 0:00:31]} (31. Ra1 $142) 31... Rd7 {[%emt 0:00:08]} 32. Rxd7 {[%emt 0:00:58]} Kxd7 {[%emt 0:00:05] KN-KP} 33. a3 {[%emt 0:00:19]} Kc6 {[%emt 0:00:04] [#] Strongly threatening ...Kb5.} 34. Kf1 {[%emt 0:00:20]} a5 {[%emt 0:00:16]} 35. Ke1 {[%emt 0:02:54]} axb4 {[%emt 0:00:05]} 36. axb4 {[%emt 0:00:02]} Nd5 {[%emt 0:00:10]} 37. Kd2 {[%emt 0:02:07]} Nxb4 {[%emt 0:00:07]} 38. Ke3 {[%emt 0:00:08]} Kxc5 {[%emt 0:00:05] ...f5 is the strong threat. KN-K3P} 39. Ke4 {[%emt 0:01:05]} Kd6 {[%emt 0:00:09]} 40. Kd4 {[%emt 0:02:21]} e5+ {[%emt 0:00:15][%cal Be6e5,Be5e4][%mdl 32]} 41. Ke4 {[%emt 0:30:19]} Ke6 {[%emt 0:30:05]} 42. f4 {[%emt 0:01:23]} f5+ {[%emt 0:00:05] Black mates.} 43. Kf3 {[%emt 0:00:31]} e4+ {[%emt 0:00:08]} 44. Ke2 {[%emt 0:00:51]} Kd5 {[%emt 0:00:07]} 45. h3 {[%emt 0:00:33]} Kd4 {[%emt 0:00:11]} 46. g4 {[%emt 0:00:28]} g6 {[%emt 0:00:05] Weighted Error Value: White=0.65/Black=0.16 (very precise)} 0-1

[Event "Slovakian-ch Youth 2022"]
[Site "Lubovna"]
[Date "2022.05.22"]
[Round "1.14"]
[White "Zdrazil, Patrik"]
[Black "Rybiansky, Jergus"]
[Result "1-0"]
[ECO "A07"]
[WhiteElo "1997"]
[BlackElo "1379"]
[Annotator "TA"]
[PlyCount "43"]
[EventDate "2022.05.22"]
[EventCountry "SVK"]
[SourceTitle "playchess.com"]
[Source "ChessBase"]
[SourceQuality "1"]
[TimeControl "40/5400+30:1800+30"]

{[%evp 15,43,4,17,-10,14,21,341,329,327,352,367,350,377,367,366,364,356,377,360,368,365,346,472,458,520,519,524,520,494,486]} 1. Nf3 {[%emt 0:00:04]} d5 {[%emt 0:00:11]} 2. g3 {[%emt 0:00:04]} c5 {[%emt 0:00:56]} 3. Bg2 {[%emt 0:00:05]} Nc6 {[%emt 0:00:35]} 4. O-O {[%emt 0:00:06]} Nf6 {[%emt 0:01:15]} 5. d3 {[%emt 0:00:09]} Bf5 {[%emt 0:02:53]} 6. Nbd2 {[%emt 0:01:14]} e6 {[%emt 0:03:21]} 7. b3 {[%emt 0:03:38]} Be7 {[%emt 0:08:49]} 8. Bb2 {[%emt 0:00:11]} O-O {[%emt 0:03:41]} 9. h3 {[%emt 0:02:16] [#] A07: Réti Opening: New York and Capablanca Systems.} h5 $146 {[%emt 0:03:12]} ({Predecessor:} 9... Qc7 10. Nh4 Bg6 11. Nxg6 hxg6 12. e3 e5 13. Qe2 Rad8 14. h4 Rfe8 15. a3 b5 16. a4 b4 {½-½ (42) Vezzani,S (2149)-Tricoli,M (1961) Arco 2019}) 10. Ne5 {[%emt 0:07:17]} Bd6 $2 {[%emt 0:10:47][%mdl 8192] [#]} (10... Nxe5 $11 {and Black has nothing to worry.} 11. Bxe5 Bg6) 11. Nxc6 $18 {[%emt 0:00:17] White has a decisive advantage.} bxc6 {[%emt 0:00:09]} 12. e4 {[%emt 0:00:14]} Bg6 {[%emt 0:04:30]} 13. e5 {[%emt 0:00:06]} Be7 {[%emt 0:00:14]} 14. exf6 {[%emt 0:00:06]} Bxf6 {[%emt 0:00:10]} 15. Bxf6 {[%emt 0:00:12]} Qxf6 {[%emt 0:00:08]} 16. Nf3 {[%emt 0:01:31]} Rfe8 {[%emt 0:09:43]} 17. Nh4 {[%emt 0:00:48]} Rad8 {[%emt 0:05:00]} 18. Nxg6 {[%emt 0:00:07]} fxg6 {[%emt 0:01:51]} 19. Qd2 {[%emt 0:00:49] White is clearly winning.} Rf8 {[%emt 0:04:24]} 20. Qe3 {[%emt 0:01:42]} Qe7 {[%emt 0:02:59]} 21. Rae1 {[%emt 0:00:11]} Rde8 {[%emt 0:02:19]} 22. c4 {[%emt 0:00:58] White took control after the opening.  Weighted Error Value: White=0.04 (flawless) /Black=0.74} 1-0

[Event "Slovakian-ch Youth 2022"]
[Site "Lubovna"]
[Date "2022.05.21"]
[Round "1.14"]
[White "Kakus, Oliver"]
[Black "Paholok, Adam"]
[Result "0-1"]
[ECO "C11"]
[WhiteElo "1000"]
[BlackElo "1449"]
[Annotator "NA COMBH"]
[PlyCount "30"]
[EventDate "2022.05.22"]
[EventCountry "SVK"]
[SourceTitle "playchess.com"]
[Source "ChessBase"]
[SourceQuality "1"]
[TimeControl "40/5400+30:1800+30"]

1. e4 {[%emt 0:00:01]} e6 {[%emt 0:00:09]} 2. Nf3 d5 3. Nc3 {[%emt 0:02:03]} Nf6 {[%emt 0:00:56]} 4. Bb5+ {[%emt 0:00:46]} c6 {[%emt 0:00:23]} 5. Ng5 cxb5 {[%emt 0:00:47]} 6. O-O b4 7. h3 bxc3 8. bxc3 {[%emt 0:03:36]} Nxe4 {[%emt 0:01:25]} 9. d3 {[%emt 0:00:31]} Nxg5 {[%emt 0:00:51]} 10. Bxg5 {[%emt 0:00:53]} Qxg5 {[%emt 0:00:13]} 11. Qf3 {[%emt 0:00:40]} Bd6 {[%emt 0:00:18]} 12. Rae1 {[%emt 0:00:19]} O-O {[%emt 0:00:33]} 13. h4 {[%emt 0:00:30]} Qxh4 {[%emt 0:00:15]} 14. Qh3 {[%emt 0:00:31]} Qf4 {[%emt 0:00:51]} 15. Qe3 {[%emt 0:00:35]} Qh2# 0-1

[Event "Slovakian-ch Youth 2022"]
[Site "Lubovna"]
[Date "2022.05.22"]
[Round "1.15"]
[White "Orgon, Patrik"]
[Black "Compel, Daniel"]
[Result "0-1"]
[ECO "A46"]
[WhiteElo "1721"]
[BlackElo "2106"]
[Annotator "TA"]
[PlyCount "80"]
[EventDate "2022.05.22"]
[EventCountry "SVK"]
[SourceTitle "playchess.com"]
[Source "ChessBase"]
[SourceQuality "1"]
[TimeControl "40/5400+30:1800+30"]

{[%evp 9,80,9,37,14,11,13,21,12,14,18,19,15,18,0,1,1,9,12,23,-41,-1,8,190,182,192,126,185,142,134,137,305,281,278,167,183,140,131,141,185,186,189,189,189,167,169,156,143,150,173,122,116,103,129,64,98,60,139,111,299,0,57,63,68,0,0,0,0,0,0,0,0,0,0]} 1. d4 {[%emt 0:00:13]} Nf6 {[%emt 0:00:04]} 2. Nf3 {[%emt 0:00:15]} c5 {[%emt 0:00:03]} 3. e3 {[%emt 0:02:00]} e6 {[%emt 0:00:23]} 4. Bd3 {[%emt 0:00:32]} Nc6 {[%emt 0:00:11]} 5. O-O {[%emt 0:01:20]} Be7 {[%emt 0:00:32]} 6. b3 {[%emt 0:03:11] A46: 1 d4 Nf6 2 Nf3 e6: Torre, London and Colle Systems.} b6 {[%emt 0:00:25]} 7. Bb2 {[%emt 0:00:30]} cxd4 {[%emt 0:00:08]} 8. exd4 {[%emt 0:00:32]} O-O {[%emt 0:00:18]} 9. Nbd2 {[%emt 0:03:58]} Nb4 {[%emt 0:01:17]} 10. Be2 {[%emt 0:03:12]} Bb7 {[%emt 0:00:10]} 11. c4 {[%emt 0:01:41] Prevents Nbd5.} d5 {[%emt 0:05:38]} 12. a3 {[%emt 0:00:59]} Nc6 {[%emt 0:00:06]} 13. Rc1 {[%emt 0:02:15]} Rc8 {[%emt 0:00:22] [#]} 14. c5 $146 {[%emt 0:03:21]} (14. Re1 $11) ({Predecessor:} 14. Re1 Ne4 15. cxd5 exd5 16. Bb5 a6 17. Bxc6 Rxc6 18. Rxc6 Bxc6 19. Ne5 Bb7 20. Nf1 Bd6 21. f3 {0-1 (57) Midoux,S (2268)-Maze,S (2595) Menton 2018}) 14... bxc5 {[%emt 0:01:58]} 15. dxc5 {[%emt 0:00:08]} e5 $2 {[%emt 0:01:03] [#]} (15... a5 $11 {and Black is okay.}) 16. b4 $1 $18 {[%emt 0:08:35]} d4 {[%emt 0:25:49]} 17. Bb5 {[%emt 0:10:05]} (17. Nc4 $18) 17... Qc7 {[%emt 0:03:41]} (17... Nd5 $16) 18. Nc4 {[%emt 0:03:23] Bxc6 is the strong threat.} Nd7 {[%emt 0:03:05]} 19. Re1 {[%emt 0:00:41]} f6 $2 {[%emt 0:00:54]} (19... Ba8 $16 20. Bxd4 Rfd8) 20. Bxc6 {[%emt 0:05:52]} Bxc6 {[%emt 0:01:40] [#]} 21. Bxd4 $1 {[%emt 0:04:16][%mdl 512]} Rfd8 {[%emt 0:15:16]} (21... Rfe8 22. Bb2) 22. Qb3 {[%emt 0:00:56] White wants to mate with Nd6+.} Bd5 {[%emt 0:01:33]} 23. Be3 {[%emt 0:01:20]} e4 {[%emt 0:01:29] [#]} 24. Nfd2 {[%emt 0:00:31]} ({Don't do} 24. Nd4 $6 Ne5 $14) 24... f5 {[%emt 0:06:07]} 25. Bd4 {[%emt 0:04:21]} Nf6 {[%emt 0:07:38]} 26. Be5 {[%emt 0:03:49]} Qd7 {[%emt 0:01:43]} 27. Qc3 {[%emt 0:04:44]} Qe6 {[%emt 0:00:41]} 28. Ne3 {[%emt 0:06:26]} Bb7 {[%emt 0:04:58][%cal Od8d2]} 29. Qc4 {[%emt 0:03:51]} ({Better is} 29. Qb3 $18 Nd5 30. Nec4) 29... Nd5 $16 {[%emt 0:00:16]} 30. Nxd5 {[%emt 0:02:56]} Rxd5 {[%emt 0:01:12]} 31. Bc3 {[%emt 0:03:52]} ({White should try} 31. Bf4 $16) 31... Ba6 {[%emt 0:02:16]} 32. Qa2 {[%emt 0:01:01]} Kh8 {[%emt 0:01:28]} (32... Qf7 $14) 33. Qb2 {[%emt 0:02:09] Hoping for b5.} Qg6 $2 {[%emt 0:03:00]} (33... Bg5 $16 {keeps fighting.}) 34. f3 $2 {[%emt 0:03:24]} (34. b5 $18) 34... Bh4 {[%emt 0:03:33]} (34... Bg5 $11) 35. fxe4 $14 {[%emt 0:03:04]} fxe4 {[%emt 0:04:26] [#]} 36. Nxe4 $1 {[%emt 0:04:52]} Bxe1 $11 {[%emt 0:00:33] The position is equal.} 37. Rxe1 {[%emt 0:00:08] Black must now prevent b5.} Re8 {[%emt 0:00:28]} 38. Nd6 {[%emt 0:01:37]} Rxe1+ {[%emt 0:00:12]} 39. Bxe1 {[%emt 0:00:06]} Qe6 {[%emt 0:03:17][%cal Re6e1]} 40. Qf2 {[%emt 0:01:33] White threatens Qf8+ and mate.} Kg8 {[%emt 0:01:20][%mdl 32768] Against Qf8+. Black defended with fortune.  Weighted Error Value: White=0.31/Black=0.36. Sensor Board Error (Ke4/e5)?} 0-1

[Event "Slovakian-ch Youth 2022"]
[Site "Lubovna"]
[Date "2022.05.21"]
[Round "1.15"]
[White "Carnecky, Viliam"]
[Black "Otahal, Kristian"]
[Result "1-0"]
[ECO "B22"]
[WhiteElo "1380"]
[BlackElo "1000"]
[Annotator "NA COMBH"]
[PlyCount "47"]
[EventDate "2022.05.22"]
[EventCountry "SVK"]
[SourceTitle "playchess.com"]
[Source "ChessBase"]
[SourceQuality "1"]
[TimeControl "40/5400+30:1800+30"]

1. e4 {[%emt 0:00:06]} c5 {[%emt 0:00:05]} 2. c3 {[%emt 0:00:17]} Nc6 {[%emt 0:00:28]} 3. d4 {[%emt 0:00:18]} cxd4 {[%emt 0:01:51]} 4. cxd4 {[%emt 0:00:54]} d5 {[%emt 0:01:01]} 5. e5 {[%emt 0:01:34]} Bf5 {[%emt 0:01:24]} 6. Nc3 {[%emt 0:01:10]} e6 {[%emt 0:00:20]} 7. Nf3 {[%emt 0:01:57]} Bb4 {[%emt 0:01:07]} 8. Be3 {[%emt 0:00:45]} Bxc3+ {[%emt 0:01:43]} 9. bxc3 {[%emt 0:00:43]} Nge7 {[%emt 0:00:33]} 10. Be2 {[%emt 0:02:55]} Qc7 {[%emt 0:03:20]} 11. O-O {[%emt 0:01:27]} O-O-O {[%emt 0:00:06]} 12. c4 {[%emt 0:03:34]} f6 {[%emt 0:03:09]} 13. cxd5 {[%emt 0:04:20]} Nxd5 {[%emt 0:00:34]} 14. exf6 {[%emt 0:00:59]} gxf6 {[%emt 0:00:10]} 15. Qd2 {[%emt 0:02:25]} e5 {[%emt 0:00:24]} 16. dxe5 {[%emt 0:01:28]} Nxe3 {[%emt 0:04:17]} 17. Qxe3 {[%emt 0:00:19]} fxe5 {[%emt 0:00:15]} 18. Bb5 {[%emt 0:02:03]} Nd4 {[%emt 0:04:37]} 19. Rac1 {[%emt 0:05:17]} Bc2 {[%emt 0:02:48]} 20. Nxd4 {[%emt 0:00:34]} Rxd4 {[%emt 0:05:18]} 21. Qe2 {[%emt 0:01:28]} Kb8 {[%emt 0:13:24]} 22. Rxc2 {[%emt 0:01:03]} Qd8 {[%emt 0:05:39]} 23. Qxe5+ {[%emt 0:00:30]} Rd6 {[%emt 0:03:47]} 24. Rd1 {[%emt 0:01:17]} 1-0

[Event "Slovakian-ch Youth 2022"]
[Site "Lubovna"]
[Date "2022.05.22"]
[Round "1.16"]
[White "Salgovic, Simon"]
[Black "Jurky, Marian"]
[Result "1-0"]
[ECO "B85"]
[WhiteElo "2091"]
[BlackElo "1689"]
[Annotator "TA"]
[PlyCount "115"]
[EventDate "2022.05.22"]
[EventCountry "SVK"]
[SourceTitle "playchess.com"]
[Source "ChessBase"]
[SourceQuality "1"]
[TimeControl "40/5400+30:1800+30"]

{[%evp 20,115,19,0,39,58,77,71,81,65,85,83,115,122,129,131,125,121,119,76,203,186,380,359,278,108,101,100,86,93,93,91,102,103,287,296,306,296,304,288,296,277,263,266,368,370,425,425,424,408,408,406,621,427,425,345,431,404,447,432,439,426,424,422,646,620,29969,29970,29968,29970,29970,29971,29971,29972,29971,29972,29979,29980,29982,29983,29987,29988,29988,29988,29988,29989,29989,29990,29990,29991,29991,29992,29994,29995,29995,29996,29998,29997]} 1. e4 {[%emt 0:00:08]} c5 {[%emt 0:00:06]} 2. Nf3 {[%emt 0:00:04]} d6 {[%emt 0:00:06]} 3. d4 {[%emt 0:03:04]} cxd4 {[%emt 0:00:07]} 4. Nxd4 {[%emt 0:00:07]} Nf6 {[%emt 0:00:04]} 5. Nc3 {[%emt 0:00:10]} a6 {[%emt 0:00:29]} 6. Be3 {[%emt 0:00:46]} e6 {[%emt 0:01:25]} 7. Be2 {[%emt 0:02:49]} Be7 {[%emt 0:03:38]} 8. a4 {[%emt 0:04:55]} Bd7 {[%emt 0:02:54]} 9. O-O {[%emt 0:00:43]} O-O {[%emt 0:00:07]} 10. f4 {[%emt 0:03:26]} Nc6 {[%emt 0:02:01]} 11. Nb3 {[%emt 0:02:46]} Qc7 {[%emt 0:06:00] B85: Sicilian Scheveningen: 6 Be2 a6, lines with early Be3.} 12. a5 {[%emt 0:02:59]} Bd8 {[%emt 0:07:17]} 13. Bf3 {[%emt 0:33:01] [#]} Qb8 $146 {[%emt 0:13:12] White is better.} ({Predecessor:} 13... e5 14. Nd5 Nxd5 15. exd5 Ne7 16. fxe5 Ng6 17. exd6 Qxd6 18. Bc5 Qe5 19. Bxf8 Kxf8 {1-0 (38) Belostozkaja,J-Cornelissen,P Willingen 1999}) 14. Kh1 {[%emt 0:02:34]} h6 {[%emt 0:07:39]} 15. Qd2 {[%emt 0:18:07]} Kh8 {[%emt 0:18:17]} 16. Rfd1 {[%emt 0:21:58]} Bc7 {[%emt 0:04:05][%cal Od6d5]} 17. Na4 {[%emt 0:00:47]} Ne7 {[%emt 0:07:00]} 18. Nb6 {[%emt 0:00:31]} Bxb6 {[%emt 0:00:05]} 19. Bxb6 {[%emt 0:00:19] Threatens to win with e5.} Nc8 {[%emt 0:00:11] [#]} (19... Bc6 $16 {might work better.}) 20. e5 $1 $18 {[%emt 0:00:37]} dxe5 {[%emt 0:07:45]} (20... Nd5 21. c4 (21. Bxd5 exd5 22. Bd4 Bf5 $16) 21... Ndxb6) 21. fxe5 {[%emt 0:00:13]} Nd5 {[%emt 0:00:04]} 22. Bxd5 $2 {[%emt 0:00:52]} (22. Bc5 $18 {has better winning chances.} Rd8 23. c4) 22... exd5 $16 {[%emt 0:00:19]} 23. Bc5 {[%emt 0:00:31]} ({Resist} 23. Qxd5 Bc6 24. Qd4 Re8 $14) 23... Re8 {[%emt 0:00:38]} 24. Qxd5 {[%emt 0:00:19]} Be6 {[%emt 0:00:18]} 25. Qd4 $36 {[%emt 0:00:43][%mdl 2048] White has strong initiative. White is much more active. The black rooks are badly placed.} Bxb3 {[%emt 0:01:08]} 26. cxb3 {[%emt 0:00:02] aiming for Qf2.} Qxe5 $2 {[%emt 0:01:55] [#]} (26... Ne7 $16) 27. Qxe5 $18 {[%emt 0:00:50]} Rxe5 {[%emt 0:00:05]} 28. Rd8+ {[%emt 0:00:07]} Kh7 {[%emt 0:00:03]} 29. b4 {[%emt 0:00:57]} Re6 {[%emt 0:05:48]} 30. Rc1 {[%emt 0:00:34]} Rc6 {[%emt 0:00:39][%cal Oc8b6]} 31. Re1 {[%emt 0:00:14]} Rb8 {[%emt 0:01:46]} 32. Ree8 {[%emt 0:00:40]} b6 {[%emt 0:02:37]} 33. axb6 {[%emt 0:00:22]} a5 {[%emt 0:05:55]} 34. b7 {[%emt 0:00:19]} Rxb7 {[%emt 0:00:05][%cal Oc8e7]} 35. Rxc8 {[%emt 0:00:19]} Rf6 {[%emt 0:01:53]} (35... Rxc8 $142 36. Rxc8 axb4) 36. h3 {[%emt 0:01:04]} axb4 {[%emt 0:00:26]} 37. Re4 {[%emt 0:00:29]} b3 {[%emt 0:00:59]} 38. Rb4 {[%emt 0:00:29]} Rxb4 {[%emt 0:01:05]} 39. Bxb4 {[%emt 0:00:03][%mdl 4096] Endgame KRB-KR} Rb6 {[%emt 0:00:07]} 40. Bc3 {[%emt 0:00:21]} Kg6 {[%emt 0:00:00]} 41. Rc4 {[%emt 0:00:00]} f5 {[%emt 0:10:56]} (41... h5 $142 42. Rc5 f6) 42. Rb4 {[%emt 0:32:11]} Rxb4 {[%emt 0:22:16]} 43. Bxb4 {[%emt 0:00:30] KB-KP. White mates.} Kg5 {[%emt 0:00:30]} 44. g3 {[%emt 0:00:30][%cal Bg2g3,Bg3f4,Bf4f5,Bf5f6,Bf6f7][%mdl 32]} Kh5 {[%emt 0:00:30]} 45. Kg2 {[%emt 0:00:30]} g5 {[%emt 0:00:30]} 46. Kf3 {[%emt 0:00:30]} Kg6 {[%emt 0:00:30]} 47. Ke3 {[%emt 0:00:30]} h5 {[%emt 0:00:30]} 48. h4 {[%emt 0:00:30]} f4+ {[%emt 0:00:30]} 49. gxf4 {[%emt 0:00:30] KB-K3P} g4 {[%emt 0:00:30]} 50. Ke4 {[%emt 0:00:30]} Kf6 {[%emt 0:00:30]} 51. Bc3+ {[%emt 0:00:30]} Ke6 {[%emt 0:00:30]} 52. f5+ {[%emt 0:00:30]} Kf7 {[%emt 0:00:30]} 53. Ke5 {[%emt 0:00:30]} Ke7 {[%emt 0:00:30]} 54. f6+ {[%emt 0:00:30]} Kf7 {[%emt 0:00:30]} 55. Be1 {[%emt 0:00:30]} Kf8 {[%emt 0:00:30]} 56. Ke6 {[%emt 0:00:30]} Ke8 {[%emt 0:00:30]} 57. f7+ {[%emt 0:00:30]} Kf8 {[%emt 0:00:30]} 58. Bb4+ {[%emt 0:00:30] Weighted Error Value: White=0.20 (precise) /Black=0.60} 1-0

[Event "Slovakian-ch Youth 2022"]
[Site "Lubovna"]
[Date "2022.05.21"]
[Round "1.16"]
[White "Rybovic, Alex"]
[Black "Demjan, David"]
[Result "0-1"]
[ECO "B00"]
[WhiteElo "1000"]
[BlackElo "1375"]
[Annotator "NA COMBH"]
[PlyCount "98"]
[EventDate "2022.05.22"]
[EventCountry "SVK"]
[SourceTitle "playchess.com"]
[Source "ChessBase"]
[SourceQuality "1"]
[TimeControl "40/5400+30:1800+30"]

1. e4 {[%emt 0:00:03]} d6 {[%emt 0:00:14]} 2. Nf3 {[%emt 0:00:18]} Nf6 {[%emt 0:01:15]} 3. e5 {[%emt 0:00:53]} dxe5 {[%emt 0:00:16]} 4. Nxe5 {[%emt 0:00:24]} e6 {[%emt 0:00:16]} 5. Bb5+ {[%emt 0:00:44]} c6 {[%emt 0:00:27]} 6. Bc4 {[%emt 0:00:59]} Bd6 {[%emt 0:02:29]} 7. d4 {[%emt 0:01:53]} Bxe5 {[%emt 0:01:26]} 8. dxe5 {[%emt 0:00:29]} Qxd1+ {[%emt 0:00:11]} 9. Kxd1 {[%emt 0:00:34]} Ng4 {[%emt 0:01:45]} 10. Re1 {[%emt 0:01:18]} Nxf2+ {[%emt 0:04:48]} 11. Ke2 {[%emt 0:00:43]} Ng4 {[%emt 0:06:46]} 12. h3 {[%emt 0:00:35]} Nxe5 {[%emt 0:00:26]} 13. Nd2 {[%emt 0:01:44]} O-O {[%emt 0:01:05]} 14. Kf1 {[%emt 0:01:00]} Nbd7 {[%emt 0:02:16]} 15. b3 {[%emt 0:00:53]} b5 {[%emt 0:01:09]} 16. Bd3 {[%emt 0:01:44]} Rd8 {[%emt 0:01:25]} 17. c4 {[%emt 0:01:20]} Nxd3 {[%emt 0:00:13]} 18. Re3 {[%emt 0:02:37]} Nf6 {[%emt 0:00:46]} 19. Re2 {[%emt 0:01:55]} Ba6 {[%emt 0:00:21]} 20. Rb1 {[%emt 0:01:01]} Rab8 {[%emt 0:01:16]} 21. Bb2 {[%emt 0:01:10]} Nxb2 {[%emt 0:01:17]} 22. Rxb2 {[%emt 0:00:23]} bxc4 {[%emt 0:00:37]} 23. Ke1 {[%emt 0:01:13]} c3 {[%emt 0:00:17]} 24. Rc2 {[%emt 0:00:37]} cxd2+ {[%emt 0:01:19]} 25. Rexd2 {[%emt 0:00:27]} Rxd2 {[%emt 0:01:12]} 26. Kxd2 {[%emt 0:00:23]} Rd8+ {[%emt 0:01:01]} 27. Kc1 {[%emt 0:00:35]} h6 {[%emt 0:00:49]} 28. Rxc6 {[%emt 0:00:34]} Rc8 {[%emt 0:00:18]} 29. Rxc8+ {[%emt 0:01:02]} Bxc8 {[%emt 0:00:03]} 30. Kd2 {[%emt 0:00:17]} Bb7 {[%emt 0:00:13]} 31. Ke3 {[%emt 0:00:08]} Bxg2 {[%emt 0:00:11]} 32. a4 {[%emt 0:00:54]} Bxh3 {[%emt 0:01:42]} 33. b4 {[%emt 0:00:15]} Nd5+ {[%emt 0:00:15]} 34. Kd4 {[%emt 0:00:24]} Nxb4 {[%emt 0:00:39]} 35. Ke5 {[%emt 0:00:23]} f6+ {[%emt 0:00:32]} 36. Kd6 {[%emt 0:00:28]} f5 {[%emt 0:00:49]} 37. Kxe6 {[%emt 0:00:21]} f4+ {[%emt 0:00:12]} 38. Kd6 {[%emt 0:00:11]} f3 {[%emt 0:00:06]} 39. a5 {[%emt 0:00:05]} f2 {[%emt 0:00:10]} 40. a6 {[%emt 0:00:22]} f1=Q {[%emt 0:00:22]} 41. Ke5 {[%emt 0:30:37]} Qf5+ {[%emt 0:30:50]} 42. Kd4 {[%emt 0:00:29]} Qd5+ {[%emt 0:00:25]} 43. Kc3 {[%emt 0:00:26]} g5 {[%emt 0:00:10]} 44. Kxb4 {[%emt 0:00:40]} g4 {[%emt 0:00:11]} 45. Kc3 {[%emt 0:00:23]} g3 {[%emt 0:00:06]} 46. Kb4 {[%emt 0:00:04]} g2 {[%emt 0:00:10]} 47. Kc3 {[%emt 0:00:17]} g1=Q {[%emt 0:00:38]} 48. Kb4 {[%emt 0:00:10]} Qgc5+ {[%emt 0:00:26]} 49. Ka4 {[%emt 0:01:00]} Bd7# {[%emt 0:00:10]} 0-1